[Event "French-ch U12-U14 2024"]
[Site "Agen"]
[Date "2024.04.14"]
[Round "1.1"]
[White "Benhadid, Jeilynn"]
[Black "Glavnov, Emma"]
[Result "1-0"]
[ECO "E91"]
[WhiteElo "1844"]
[BlackElo "1427"]
[Annotator "NA RC"]
[PlyCount "89"]
[EventDate "2024.04.14"]
[EventType "swiss"]
[EventCountry "FRA"]
[SourceTitle "playchess.com"]
[Source "ChessBase"]
[SourceQuality "1"]
[TimeControl "5400+30"]

1. d4 {[%emt 0:00:08]} Nf6 {[%emt 0:00:17]} 2. c4 {[%emt 0:00:13]} g6 {[%emt 0:00:14]} 3. Nc3 {[%emt 0:00:22]} Bg7 {[%emt 0:00:13]} 4. e4 {[%emt 0:00:37]} d6 {[%emt 0:00:32]} 5. Nf3 {[%emt 0:00:32]} O-O {[%emt 0:01:05]} 6. Be2 {[%emt 0:00:32]} Re8 {[%emt 0:02:45]} 7. O-O {[%emt 0:01:07]} Nbd7 {[%emt 0:01:33] 7...Nc6 is more fashionable.} 8. e5 {[%emt 0:08:47] E91: King's Indian: Classical: 6 Be2, unusual replies including 6...c5 and 6...Bg4.} dxe5 {[%emt 0:03:54]} 9. dxe5 {[%emt 0:00:12]} Ng4 {[%emt 0:03:23]} 10. e6 {[%emt 0:02:42]} fxe6 {[%emt 0:01:47]} 11. Ng5 {[%emt 0:00:28]} Nde5 {[%emt 0:03:27]} 12. Bxg4 {[%emt 0:00:54]} Qxd1 {[%emt 0:03:22]} 13. Bxd1 {[%emt 0:00:13]} Nxc4 {[%emt 0:00:34]} 14. Bb3 {[%emt 0:01:49]} Nb6 $146 {[%emt 0:09:57]} ({Predecessor:} 14... Nd6 15. Nxe6 Bxe6 16. Bxe6+ Kh8 17. Nd5 Red8 18. Bg5 Nf5 19. Nxc7 Rab8 20. Bxf5 gxf5 {1-0 Aguirre Lorenzo,L (1798)-Gomez Mederos,D (1194) Tenerife-ch Santa Cruz 2021 (6)}) 15. Bxe6+ {[%emt 0:02:24]} Bxe6 {[%emt 0:02:13]} 16. Nxe6 {[%emt 0:00:07]} Rac8 {[%emt 0:03:01]} 17. Bf4 {[%emt 0:11:28]} c6 {[%emt 0:05:14]} 18. Rad1 {[%emt 0:05:07]} Bxc3 {[%emt 0:04:32]} 19. bxc3 {[%emt 0:00:27]} Nd5 {[%emt 0:05:56]} 20. Be5 {[%emt 0:01:54]} Kf7 {[%emt 0:13:22]} 21. Ng5+ {[%emt 0:03:20]} Kg8 {[%emt 0:01:29]} 22. Rfe1 {[%emt 0:03:51]} Nf6 {[%emt 0:05:15]} 23. Ne4 {[%emt 0:13:55]} Nxe4 {[%emt 0:02:39]} 24. Rxe4 {[%emt 0:00:08]} Rcd8 {[%emt 0:01:09]} 25. Red4 {[%emt 0:00:18]} Ra8 {[%emt 0:02:37]} 26. Rd7 {[%emt 0:01:23]} b6 {[%emt 0:00:46]} 27. h3 {[%emt 0:00:30]} Kf7 {[%emt 0:02:20]} 28. Rc7 {[%emt 0:00:53]} c5 {[%emt 0:01:00]} 29. Rdd7 {[%emt 0:00:46]} Ke6 {[%emt 0:03:23]} 30. Bg3 {[%emt 0:00:40]} a6 {[%emt 0:03:18]} 31. Bh4 $18 {[%emt 0:00:40]} Rh8 {[%emt 0:06:32]} 32. Rxe7+ {[%emt 0:00:41]} Kd5 {[%emt 0:00:36]} 33. Rxh7 {[%emt 0:00:43]} Rxh7 {[%emt 0:01:14]} 34. Rxh7 {[%emt 0:00:21]} Re8 {[%emt 0:00:47]} 35. Kf1 {[%emt 0:02:11]} Re6 {[%emt 0:00:39]} 36. Re7 {[%emt 0:02:19]} Rxe7 {[%emt 0:00:41]} 37. Bxe7 {[%emt 0:00:05]} Kc4 {[%emt 0:00:10]} 38. Bf6 {[%emt 0:00:11]} Kd3 {[%emt 0:00:08]} 39. h4 {[%emt 0:00:58]} c4 {[%emt 0:01:20]} 40. a4 {[%emt 0:01:16]} b5 {[%emt 0:00:58]} 41. axb5 {[%emt 0:00:13]} axb5 {[%emt 0:00:17]} 42. g4 {[%emt 0:00:13]} Ke4 {[%emt 0:01:44]} 43. h5 {[%emt 0:00:42]} gxh5 {[%emt 0:00:16]} 44. gxh5 {[%emt 0:00:06]} Kf5 {[%emt 0:00:17]} 45. Bg7 {[%emt 0:00:10]} 1-0

[Event "French-ch U12-U14 2024"]
[Site "Agen"]
[Date "2024.04.14"]
[Round "1.2"]
[White "Cassam Chenai, Lea"]
[Black "Alcantara, Levanah"]
[Result "0-1"]
[ECO "C02"]
[WhiteElo "1426"]
[BlackElo "1756"]
[Annotator "NA RC"]
[PlyCount "70"]
[EventDate "2024.04.14"]
[EventType "swiss"]
[EventCountry "FRA"]
[SourceTitle "playchess.com"]
[Source "ChessBase"]
[SourceQuality "1"]
[TimeControl "5400+30"]

1. e4 {[%emt 0:00:30]} e6 {[%emt 0:00:30]} 2. d4 {[%emt 0:00:30]} d5 {[%emt 0:00:30]} 3. e5 {[%emt 0:00:00]} c5 {[%emt 0:00:00]} 4. c3 {[%emt 0:00:00]} Nc6 {[%emt 1:31:30]} 5. Nf3 {[%emt 0:00:00]} Nge7 {[%emt 0:00:00]} 6. a3 {[%emt 0:00:05]} Nf5 {[%emt 0:00:00]} 7. g4 {[%emt 0:00:12]} Nh4 {[%emt 0:00:00]} 8. Nbd2 {[%emt 0:01:03]} Be7 {[%emt 0:00:00]} 9. b4 {[%emt 0:01:25]} cxd4 {[%emt 0:00:00]} 10. cxd4 {[%emt 0:00:14]} a6 {[%emt 0:00:00]} 11. Nxh4 {[%emt 0:03:37]} Bxh4 {[%emt 0:00:00]} 12. Nf3 {[%emt 0:00:14]} Be7 {[%emt 0:00:00]} 13. h4 {[%emt 0:02:00]} Bd7 {[%emt 0:00:00]} 14. Bg2 {[%emt 0:01:24]} Rc8 {[%emt 0:00:00]} 15. g5 {[%emt 0:04:15]} Na7 {[%emt 0:00:00]} 16. Bb2 {[%emt 0:03:31]} Bb5 {[%emt 0:00:00]} 17. Bf1 {[%emt 0:01:01]} Bc4 {[%emt 0:00:00]} 18. Rc1 {[%emt 0:01:20]} b5 {[%emt 0:00:00]} 19. Nd2 {[%emt 0:01:25]} Qd7 {[%emt 0:00:00]} 20. Nb3 {[%emt 0:00:45]} Bxb3 {[%emt 0:00:00]} 21. Rxc8+ {[%emt 0:00:26]} Nxc8 {[%emt 0:00:00]} 22. Qxb3 {[%emt 0:00:19]} Nb6 {[%emt 0:00:00]} 23. Qc2 {[%emt 0:01:49]} Nc4 {[%emt 0:00:00]} 24. Bd3 {[%emt 0:00:46]} Bd8 {[%emt 0:00:00]} 25. f4 {[%emt 0:00:48]} Bb6 {[%emt 0:00:00]} 26. Ke2 {[%emt 0:00:59]} Ke7 {[%emt 0:00:00]} 27. Rg1 {[%emt 0:02:00]} Rc8 {[%emt 0:00:00]} 28. Qb1 {[%emt 0:01:07]} Qa7 {[%emt 0:00:00]} 29. Bxh7 {[%emt 0:01:38]} Nxb2 {[%emt 0:00:00]} 30. Qxb2 {[%emt 0:00:15]} Bxd4 {[%emt 0:00:00]} 31. Qd2 {[%emt 0:02:33]} Bxg1 {[%emt 0:00:00]} 32. h5 {[%emt 0:00:26]} Qf2+ {[%emt 0:00:00]} 33. Kd3 {[%emt 0:00:30]} Qf1+ {[%emt 0:00:00]} 34. Qe2 {[%emt 0:00:26]} Rc3+ {[%emt 0:00:00]} 35. Kd2 {[%emt 0:00:47]} Qc1# {[%emt 0:00:00]} 0-1

[Event "French-ch U12-U14 2024"]
[Site "Agen"]
[Date "2024.04.14"]
[Round "1.3"]
[White "Messali Anger, Ilyana"]
[Black "Truillet, Sarah"]
[Result "1-0"]
[ECO "B04"]
[WhiteElo "1718"]
[BlackElo "1425"]
[Annotator "NA RC"]
[PlyCount "89"]
[EventDate "2024.04.14"]
[EventType "swiss"]
[EventCountry "FRA"]
[SourceTitle "playchess.com"]
[Source "ChessBase"]
[SourceQuality "1"]
[TimeControl "5400+30"]

1. e4 {[%emt 0:00:06]} Nf6 {[%emt 0:00:12]} 2. e5 {[%emt 0:00:36]} Nd5 {[%emt 0:00:17]} 3. d4 {[%emt 0:01:03]} d6 {[%emt 0:00:22]} 4. Nf3 {[%emt 0:03:56]} Nc6 {[%emt 0:09:06]} 5. Bc4 {[%emt 0:08:50]} Nb6 {[%emt 0:01:22]} 6. Bd3 {[%emt 0:03:32]} Bg4 {[%emt 0:06:45]} 7. Be2 {[%emt 0:08:58]} dxe5 {[%emt 0:05:04]} 8. dxe5 {[%emt 0:04:22]} Qxd1+ {[%emt 0:00:24]} 9. Bxd1 {[%emt 0:01:42]} g6 {[%emt 0:02:23]} 10. h3 {[%emt 0:05:20]} Bf5 {[%emt 0:01:51]} 11. O-O {[%emt 0:03:03]} Bg7 {[%emt 0:01:10]} 12. Bf4 {[%emt 0:01:57]} Nc4 {[%emt 0:01:37]} 13. g4 {[%emt 0:10:17]} Be4 {[%emt 0:01:57]} 14. Nbd2 {[%emt 0:04:27]} Bxf3 {[%emt 0:11:41]} 15. Nxc4 {[%emt 0:05:00]} Bd5 {[%emt 0:00:44]} 16. Ne3 {[%emt 0:03:02]} Be6 {[%emt 0:01:40]} 17. Bf3 {[%emt 0:02:26]} Nxe5 {[%emt 0:00:39]} 18. Bxb7 {[%emt 0:01:19]} Rb8 {[%emt 0:00:16]} 19. Be4 {[%emt 0:02:17]} O-O {[%emt 0:00:55]} 20. Nd5 {[%emt 0:03:13]} Bxd5 {[%emt 0:01:18]} 21. Bxd5 {[%emt 0:01:00]} Rb5 {[%emt 0:01:35]} 22. Bb3 {[%emt 0:01:16]} Rb4 {[%emt 0:03:07]} 23. Be3 {[%emt 0:01:13]} Nf3+ {[%emt 0:01:07]} 24. Kg2 {[%emt 0:00:59]} Nd4 {[%emt 0:00:28]} 25. c3 {[%emt 0:02:26]} Nxb3 {[%emt 0:00:14]} 26. axb3 {[%emt 0:01:43]} Rxb3 {[%emt 0:00:41]} 27. Ra2 {[%emt 0:19:57]} Be5 28. Rxa7 {[%emt 0:00:00]} Rxb2 {[%emt 0:02:01]} 29. Bd4 {[%emt 0:00:00]} Bxd4 {[%emt 0:00:30]} 30. cxd4 {[%emt 0:00:00]} Rb3 {[%emt 0:00:30]} 31. Rd1 {[%emt 0:00:00]} Rd8 {[%emt 0:01:06]} 32. Rxc7 {[%emt 0:00:00]} Rb2 {[%emt 0:00:24]} 33. Rd3 {[%emt 0:00:00]} e6 {[%emt 0:01:08]} 34. Rf3 {[%emt 0:00:00]} Rb4 {[%emt 0:00:11]} 35. Rd7 {[%emt 0:00:00]} Rf8 {[%emt 0:00:54]} 36. Kg3 {[%emt 0:00:00]} Rb5 {[%emt 0:00:27]} 37. Rd6 {[%emt 0:05:00]} Rd5 38. Rxd5 {[%emt 0:00:00]} exd5 {[%emt 0:00:39]} 39. Rf6 {[%emt 0:00:00]} Rd8 {[%emt 0:00:18]} 40. Kf4 {[%emt 0:00:00]} Kg7 {[%emt 0:00:22]} 41. g5 {[%emt 0:00:00]} Re8 {[%emt 0:00:32]} 42. f3 {[%emt 0:00:00]} Re6 {[%emt 0:00:16]} 43. Rxe6 {[%emt 0:00:00]} fxe6 {[%emt 0:00:05]} 44. Ke5 {[%emt 0:00:00]} Kf7 {[%emt 0:00:19]} 45. Kd6 {[%emt 0:00:00]} 1-0

[Event "French-ch U12-U14 2024"]
[Site "Agen"]
[Date "2024.04.14"]
[Round "1.4"]
[White "Rougier, Constance"]
[Black "Anseeuw, Emma"]
[Result "0-1"]
[ECO "B22"]
[WhiteElo "1424"]
[BlackElo "1667"]
[Annotator "NA RC"]
[PlyCount "60"]
[EventDate "2024.04.14"]
[EventType "swiss"]
[EventCountry "FRA"]
[SourceTitle "playchess.com"]
[Source "ChessBase"]
[SourceQuality "1"]
[TimeControl "5400+30"]

1. e4 {[%emt 0:00:04]} c5 {[%emt 0:00:07]} 2. c3 {[%emt 0:00:12]} d5 {[%emt 0:00:37]} 3. exd5 {[%emt 0:01:37]} Qxd5 {[%emt 0:00:18]} 4. Nf3 {[%emt 0:01:39]} Nc6 {[%emt 0:00:55]} 5. Bb5 {[%emt 0:01:21]} Bg4 {[%emt 0:01:14]} 6. d3 {[%emt 0:05:43]} Nf6 {[%emt 0:07:03]} 7. Qe2 {[%emt 0:03:56]} e6 {[%emt 0:05:27]} 8. Qe3 {[%emt 0:01:47]} Rc8 {[%emt 0:04:44]} 9. c4 {[%emt 0:06:38]} Qd8 {[%emt 0:02:33]} 10. Nc3 {[%emt 0:02:26]} a6 {[%emt 0:03:57]} 11. Ba4 {[%emt 0:00:59]} Bf5 {[%emt 0:02:50]} 12. Ne4 {[%emt 0:04:03]} Nxe4 {[%emt 0:01:42]} 13. dxe4 {[%emt 0:00:24]} Bxe4 {[%emt 0:01:28]} 14. Qxe4 {[%emt 0:03:42]} Qa5+ {[%emt 0:00:11]} 15. Bd2 {[%emt 0:02:05]} Qxa4 {[%emt 0:00:17]} 16. b3 {[%emt 0:00:57]} Qa3 {[%emt 0:00:31]} 17. O-O {[%emt 0:02:36]} Qb2 {[%emt 0:01:09]} 18. Bf4 {[%emt 0:07:39]} Be7 {[%emt 0:04:06]} 19. Ne5 {[%emt 0:01:54]} Qd4 {[%emt 0:02:25]} 20. Qxd4 {[%emt 0:03:08]} Nxd4 {[%emt 0:00:47]} 21. Bg3 {[%emt 0:03:09]} Ne2+ {[%emt 0:00:57]} 22. Kh1 {[%emt 0:00:44]} Bf6 {[%emt 0:01:55]} 23. Rae1 {[%emt 0:01:58]} Nd4 {[%emt 0:02:26]} 24. f4 {[%emt 0:03:42]} h5 {[%emt 0:03:20]} 25. Nf3 {[%emt 0:01:12]} h4 {[%emt 0:02:19]} 26. Bf2 {[%emt 0:01:53]} h3 {[%emt 0:00:26]} 27. g3 {[%emt 0:01:15]} Nxf3 {[%emt 0:00:19]} 28. Re3 {[%emt 0:01:05]} Nd4 {[%emt 0:00:57]} 29. Rd3 {[%emt 0:01:28]} Rd8 {[%emt 0:01:05]} 30. Bxd4 {[%emt 0:02:06]} Rxd4 {[%emt 0:01:36]} 0-1

[Event "French-ch U12-U14 2024"]
[Site "Agen"]
[Date "2024.04.14"]
[Round "1.5"]
[White "Ribreau, Anna"]
[Black "Bedus Everaerd, Perle"]
[Result "1-0"]
[ECO "A30"]
[WhiteElo "1648"]
[BlackElo "1423"]
[Annotator "NA RC"]
[PlyCount "71"]
[EventDate "2024.04.14"]
[EventType "swiss"]
[EventCountry "FRA"]
[SourceTitle "playchess.com"]
[Source "ChessBase"]
[SourceQuality "1"]
[TimeControl "5400+30"]

1. c4 {[%emt 0:00:11]} e6 {[%emt 0:00:20]} 2. g3 {[%emt 0:00:43]} d5 {[%emt 0:00:35]} 3. Bg2 {[%emt 0:01:12]} c5 {[%emt 0:01:17]} 4. Nf3 {[%emt 0:03:27]} d4 {[%emt 0:03:18]} 5. b4 {[%emt 0:13:39]} cxb4 {[%emt 0:03:14]} 6. Bb2 {[%emt 0:01:36]} Nc6 {[%emt 0:01:33]} 7. Qa4 {[%emt 0:05:46]} Bd7 {[%emt 0:04:01]} 8. Qc2 {[%emt 0:06:50]} Qb6 {[%emt 0:02:07]} 9. d3 {[%emt 0:02:49]} Nf6 {[%emt 0:03:26]} 10. Nbd2 {[%emt 0:01:08]} Bd6 {[%emt 0:02:58]} 11. Nb3 {[%emt 0:00:53]} Bc5 {[%emt 0:03:05]} 12. Nxc5 {[%emt 0:00:25]} Qxc5 {[%emt 0:00:23]} 13. Nd2 {[%emt 0:01:26]} Na5 {[%emt 0:02:26]} 14. a3 {[%emt 0:01:49]} Qb6 {[%emt 0:12:12]} 15. axb4 {[%emt 0:00:39]} Qxb4 {[%emt 0:01:08]} 16. Bxd4 {[%emt 0:00:27]} Nc6 {[%emt 0:03:09]} 17. Bc3 {[%emt 0:01:18]} Qd6 {[%emt 0:08:43]} 18. O-O {[%emt 0:00:45]} Rc8 {[%emt 0:01:22]} 19. Rfb1 {[%emt 0:00:30]} Rc7 {[%emt 0:01:05]} 20. Qb2 {[%emt 0:01:45]} e5 {[%emt 0:02:08]} 21. Bxc6 {[%emt 0:01:05]} Rxc6 {[%emt 0:04:39]} 22. Bxe5 {[%emt 0:00:08]} Qe6 {[%emt 0:01:00]} 23. Bxf6 {[%emt 0:00:20]} gxf6 {[%emt 0:00:35]} 24. Nf3 {[%emt 0:00:29]} Rb6 {[%emt 0:02:55]} 25. Qd2 {[%emt 0:01:36]} Rxb1+ {[%emt 0:00:58]} 26. Rxb1 {[%emt 0:00:07]} b6 {[%emt 0:05:14]} 27. Nd4 {[%emt 0:03:17]} Qh3 {[%emt 0:02:44]} 28. Qe3+ {[%emt 0:00:47]} Kf8 {[%emt 0:01:00]} 29. Qf4 {[%emt 0:01:35]} Kg7 {[%emt 0:06:06]} 30. Ra1 {[%emt 0:02:24]} Ra8 {[%emt 0:01:32]} 31. Qf3 {[%emt 0:00:27]} Re8 {[%emt 0:03:12]} 32. Rxa7 {[%emt 0:01:19]} Bg4 {[%emt 0:01:30]} 33. Qd5 {[%emt 0:00:34]} Bh5 {[%emt 0:01:27]} 34. Nf5+ {[%emt 0:00:19]} Kf8 {[%emt 0:05:15]} 35. Qd6+ {[%emt 0:00:39]} Kg8 {[%emt 0:00:33]} 36. Qxf6 {[%emt 0:00:48]} 1-0

[Event "French-ch U12-U14 2024"]
[Site "Agen"]
[Date "2024.04.14"]
[Round "1.6"]
[White "Llari, Marc"]
[Black "Viry-Babel, Gaston"]
[Result "1-0"]
[ECO "B01"]
[WhiteElo "2182"]
[BlackElo "1624"]
[Annotator "TA"]
[PlyCount "67"]
[EventDate "2024.04.14"]
[EventType "swiss"]
[EventCountry "FRA"]
[SourceTitle "playchess.com"]
[Source "ChessBase"]
[SourceQuality "1"]
[TimeControl "5400+30"]

{[%evp 9,67,39,41,6,22,19,50,19,19,15,15,12,12,5,6,0,0,-20,-16,-34,-7,-20,0,0,0,-11,25,7,38,24,62,58,210,33,45,51,43,12,112,101,85,31,25,0,-16,-44,-69,-71,106,102,96,91,91,103,986,995,1185,1178,29996,29997]} 1. e4 {[%emt 0:00:02]} d5 {[%emt 0:00:19]} 2. exd5 {[%emt 0:00:06]} Qxd5 {[%emt 0:00:11]} 3. Nc3 {[%emt 0:00:06]} Qa5 {[%emt 0:00:07]} 4. d4 {[%emt 0:00:09]} Nf6 {[%emt 0:00:08]} 5. Nf3 {[%emt 0:00:18][%cal Bg1f3,Bf3e5,Be5c4][%mdl 32]} Bf5 {[%emt 0:00:14]} 6. Bf4 {[%emt 0:01:28]} e6 {[%emt 0:01:04]} 7. Ne5 {[%emt 0:05:55] aiming for Nc4.} c6 {[%emt 0:03:58]} 8. Nc4 {[%emt 0:00:19] White is slightly better.} Qd8 {[%emt 0:01:36]} 9. Ne3 {[%emt 0:00:11]} Bg6 {[%emt 0:01:54]} 10. h4 {[%emt 0:00:33]} h6 {[%emt 0:02:11]} 11. a3 {[%emt 0:05:27]} Be7 {[%emt 0:02:32]} 12. h5 {[%emt 0:01:36]} Bh7 {[%emt 0:01:32]} 13. Qd2 {[%emt 0:00:28]} Nbd7 {[%emt 0:02:19]} 14. Be2 {[%emt 0:01:36]} Nb6 {[%emt 0:03:59]} 15. Rh3 {[%emt 0:03:09]} Nbd5 {[%emt 0:04:01]} 16. Nexd5 {[%emt 0:00:57]} Nxd5 {[%emt 0:00:29]} 17. Be5 {[%emt 0:01:44]} Bf6 {[%emt 0:06:38]} 18. Rg3 {[%emt 0:01:53]} (18. Nxd5 {simplifies} Bxe5 19. dxe5 Qxd5 20. Qxd5 cxd5 21. Rb3) 18... Nxc3 {[%emt 0:05:22]} (18... Bg5 $5 19. Rxg5 Qxg5 20. Qxg5 hxg5 21. Bxg7 Rg8 22. Nxd5 exd5 $14) 19. Qxc3 {[%emt 0:00:43]} Qe7 {[%emt 0:03:18]} 20. O-O-O {[%emt 0:02:26][%cal Od4d5] White is much more active. The black rooks are passive.} O-O $2 {[%emt 0:02:46]} (20... Bxe5 $14 21. dxe5 O-O) 21. Qe3 $2 {[%emt 0:03:00]} (21. d5 $1 $18 Bxe5 22. Qxe5) 21... Bg5 {[%emt 0:02:36]} 22. f4 {[%emt 0:00:26]} Bf6 {[%emt 0:00:37]} 23. Bd3 {[%emt 0:01:07]} Bf5 {[%emt 0:06:24]} (23... Bxd3 $11 24. Rxd3 (24. Qxd3 Rad8 $11) 24... Rad8) 24. Bxf5 $16 {[%emt 0:04:44]} exf5 {[%emt 0:00:22]} 25. Re1 {[%emt 0:00:42]} ({White should play} 25. Bxf6 $16 Qxf6 26. Qe5 Qxe5 27. fxe5 (27. dxe5 Rfe8 $14)) 25... Rfe8 $14 {[%emt 0:03:20]} 26. Qd3 {[%emt 0:01:22]} Bxe5 $1 {[%emt 0:05:37]} 27. fxe5 {[%emt 0:05:07]} Qh4 {[%emt 0:03:00] White must now prevent ...f4.} 28. Rf1 {[%emt 0:03:05] [#]} Qxh5 {[%emt 0:02:48]} (28... Rad8 $1 $17 {and life is bright.} 29. Re3 Qxh5 (29... Qxd4 30. Rxf5 f6 31. Qb3+ Kh7 32. Kb1 $17) (29... Rxd4 30. Qxf5 Re7 31. e6 $11)) 29. Rxf5 {[%emt 0:01:32]} Qh1+ {[%emt 0:01:33]} 30. Rf1 {[%emt 0:00:59][%cal Bf5f1,Bf1f6,Bf6h6][%mdl 32]} Qh4 {[%emt 0:01:04]} 31. Qf3 $40 {[%emt 0:01:15][%mdl 128] White attacks with force.} Qe7 {[%emt 0:03:41][%mdl 8192] [#]} (31... Rf8 $16 32. c3 Rae8) 32. Qh5 $1 $18 {[%emt 0:01:34]} Qe6 {[%emt 0:01:13]} 33. Rf6 {[%emt 0:00:12][%cal Oh5h6] Intending Qxh6! and mate.} Qe7 {[%emt 0:04:28]} 34. Rxh6 {[%emt 0:01:15] Weighted Error Value: White=0.23 (precise) /Black=0.57.  Loses game:     	---       	Black=1      Missed win:     	White=1     	---        Mistake:       	White=1     	Black=3      Inaccurate:     	White=4     	Black=5      OK:         	White=8     	Black=10     Best:        	White=1     	Black=1      Strong:       	White=1     	Black=1} 1-0

[Event "French-ch U12-U14 2024"]
[Site "Agen"]
[Date "2024.04.14"]
[Round "1.7"]
[White "Caracci, Elyes"]
[Black "Bat, Sodcetsen"]
[Result "0-1"]
[ECO "D00"]
[WhiteElo "1623"]
[BlackElo "2012"]
[Annotator "NA RC"]
[PlyCount "108"]
[EventDate "2024.04.14"]
[EventType "swiss"]
[EventCountry "FRA"]
[SourceTitle "playchess.com"]
[Source "ChessBase"]
[SourceQuality "1"]
[TimeControl "5400+30"]

1. d4 {[%emt 0:00:03]} Nf6 {[%emt 0:00:13]} 2. Bf4 {[%emt 0:00:16]} e6 {[%emt 0:00:15]} 3. e3 {[%emt 0:00:13]} d5 {[%emt 0:00:09]} 4. c3 {[%emt 0:00:18]} Bd6 {[%emt 0:00:32]} 5. Bg3 {[%emt 0:00:49]} O-O {[%emt 0:00:20]} 6. Nf3 {[%emt 0:00:07] D00: 1 d4 d5: Unusual lines.} b6 {[%emt 0:00:44]} 7. Bd3 {[%emt 0:00:38]} Bb7 {[%emt 0:00:30]} 8. Ne5 {[%emt 0:00:26]} Nbd7 {[%emt 0:04:05]} 9. Nd2 {[%emt 0:01:15]} Ne4 {[%emt 0:01:16]} 10. Ndf3 {[%emt 0:04:05]} Nxe5 {[%emt 0:06:28]} 11. Nxe5 {[%emt 0:00:30]} Bxe5 {[%emt 0:00:56]} 12. Bxe5 {[%emt 0:00:47]} f6 {[%emt 0:01:01]} 13. Bg3 {[%emt 0:00:45]} Qe7 {[%emt 0:01:56]} 14. Qh5 {[%emt 0:01:52]} Qf7 {[%emt 0:05:05]} 15. Qf3 {[%emt 0:01:36]} c5 {[%emt 0:03:11]} 16. Bf4 {[%emt 0:03:07]} cxd4 {[%emt 0:01:21]} 17. exd4 {[%emt 0:00:40]} e5 {[%emt 0:03:11]} 18. Be3 {[%emt 0:00:55]} exd4 {[%emt 0:00:38]} 19. cxd4 {[%emt 0:00:16]} f5 {[%emt 0:01:59]} 20. Bf4 {[%emt 0:02:23]} Qe7 {[%emt 0:04:01]} 21. O-O {[%emt 0:00:46]} g5 {[%emt 0:04:50]} 22. Bc1 {[%emt 0:00:39]} Qf6 {[%emt 0:03:31]} 23. Rd1 {[%emt 0:02:41]} f4 {[%emt 0:03:40]} 24. Qg4 {[%emt 0:03:10]} Bc8 {[%emt 0:01:33]} 25. Qf3 {[%emt 0:00:23]} g4 {[%emt 0:00:43]} 26. Qe2 {[%emt 0:00:26]} f3 {[%emt 0:01:15]} 27. Qf1 {[%emt 0:01:05] [#]} fxg2 $1 {[%emt 0:00:53]} ({And not} 27... Qxd4 28. Be3 Qe5 29. Bxe4 dxe4 30. a4 $16) 28. Qxg2 {[%emt 0:00:24]} Qxf2+ {[%emt 0:01:44]} 29. Qxf2 {[%emt 0:00:23]} Nxf2 {[%emt 0:00:08]} 30. Rd2 {[%emt 0:00:38]} Nxd3 {[%emt 0:00:30]} 31. Rxd3 {[%emt 0:00:11]} Ba6 {[%emt 0:00:28]} 32. Rg3 {[%emt 0:00:18]} Rf1+ {[%emt 0:00:17]} 33. Kg2 {[%emt 0:00:13]} Rc8 {[%emt 0:00:39]} 34. Ra3 {[%emt 0:02:54]} Rc2+ {[%emt 0:07:56]} 35. Kg3 {[%emt 0:00:53]} Bc8 {[%emt 0:03:49]} 36. Rc3 {[%emt 0:00:55]} Rxc3+ {[%emt 0:00:13]} 37. bxc3 {[%emt 0:00:11]} Rf3+ {[%emt 0:00:07]} 38. Kg2 {[%emt 0:03:29]} Rxc3 {[%emt 0:00:19]} 39. Bh6 {[%emt 0:00:11]} Kf7 {[%emt 0:00:48]} 40. Rf1+ {[%emt 0:02:12]} Kg6 {[%emt 0:00:40]} 41. Bf4 {[%emt 0:02:20]} Bf5 {[%emt 0:00:23]} 42. Rf2 {[%emt 0:00:51]} Be4+ {[%emt 0:00:28]} 43. Kf1 {[%emt 0:01:04]} Rf3 $19 {[%emt 0:00:19]} 44. Be5 {[%emt 0:01:15]} Kf5 {[%emt 0:00:37]} 45. Bg3 {[%emt 0:02:32]} Bd3+ {[%emt 0:00:27]} 46. Ke1 {[%emt 0:01:24]} Ke4 {[%emt 0:00:44]} 47. Be5 {[%emt 0:01:13]} Rxf2 {[%emt 0:00:29]} 48. Kxf2 {[%emt 0:00:41]} b5 {[%emt 0:00:09]} 49. Kg3 {[%emt 0:00:24]} Be2 {[%emt 0:01:12]} 50. Kf2 {[%emt 0:00:53]} Bf3 {[%emt 0:01:13]} 51. Ke1 {[%emt 0:02:29]} Kd3 {[%emt 0:00:21]} 52. a3 {[%emt 0:00:34]} a5 {[%emt 0:00:21]} 53. Kf2 {[%emt 0:02:00]} b4 {[%emt 0:00:14]} 54. Bd6 {[%emt 0:00:49]} b3 {[%emt 0:00:11]} 0-1